[Event "*** Titled Tuesday Blitz"]
[Site "Chess.com"]
[Date "2019.07.02"]
[Round "9"]
[White "Vamostodorecto"]
[Black "Mazanchenko_Dmitry"]
[Result "1-0"]
[WhiteElo "2388"]
[BlackElo "2203"]
[TimeControl "180+2"]
[EndTime "15:02:51 PDT"]
[Termination "Vamostodorecto won by checkmate"]

1. d4 {[%clk 0:02:27.3]} 1... g6 {[%clk 0:02:59.9]} 2. c4 {[%clk 0:02:27.2]}
2... Bg7 {[%clk 0:03:01.2]} 3. e4 {[%clk 0:02:28.8]} 3... d6 {[%clk 0:03:02.3]}
4. Nc3 {[%clk 0:02:30.3]} 4... Nc6 {[%clk 0:03:03.5]} 5. Nf3 {[%clk 0:02:31.5]}
5... Bg4 {[%clk 0:03:04]} 6. d5 {[%clk 0:02:31]} 6... Nd4 {[%clk 0:03:05.1]} 7.
Be3 {[%clk 0:02:28.1]} 7... e5 {[%clk 0:03:01.7]} 8. Bxd4 {[%clk 0:02:20.8]}
8... exd4 {[%clk 0:03:01]} 9. Nb5 {[%clk 0:02:21.8]} 9... c5 {[%clk 0:03:02.2]}
10. dxc6 {[%clk 0:02:20.5]} 10... bxc6 {[%clk 0:03:04.1]} 11. Nbxd4 {[%clk
0:02:08.4]} 11... Qa5+ {[%clk 0:03:01.9]} 12. Qd2 {[%clk 0:02:06.7]} 12... Qxd2+
{[%clk 0:03:02.7]} 13. Kxd2 {[%clk 0:02:08.6]} 13... Bxf3 {[%clk 0:03:03.9]} 14.
Nxf3 {[%clk 0:02:09]} 14... Bxb2 {[%clk 0:03:05.5]} 15. Rb1 {[%clk 0:02:09]}
15... Bg7 {[%clk 0:02:55.7]} 16. Rb7 {[%clk 0:02:04.5]} 16... Ne7 {[%clk
0:02:56.4]} 17. c5 {[%clk 0:01:51.4]} 17... d5 {[%clk 0:02:54.4]} 18. exd5
{[%clk 0:01:49.2]} 18... Nxd5 {[%clk 0:02:55.5]} 19. Bc4 {[%clk 0:01:44.9]}
19... O-O {[%clk 0:02:52.8]} 20. Kc2 {[%clk 0:01:30.7]} 20... a5 {[%clk
0:02:20.3]} 21. Bxd5 {[%clk 0:01:28.5]} 21... cxd5 {[%clk 0:02:22.2]} 22. Rd1
{[%clk 0:01:29.8]} 22... Rfd8 {[%clk 0:02:16.2]} 23. Kd3 {[%clk 0:01:07.8]}
23... Bh6 {[%clk 0:01:26.5]} 24. Ne5 {[%clk 0:01:01.9]} 24... Rdc8 {[%clk
0:01:20.7]} 25. Nxf7 {[%clk 0:00:57.2]} 25... Bf8 {[%clk 0:01:21.1]} 26. Kd4
{[%clk 0:00:43.3]} 26... a4 {[%clk 0:00:48.8]} 27. Rc1 {[%clk 0:00:40.5]} 27...
a3 {[%clk 0:00:39.9]} 28. c6 {[%clk 0:00:12]} 28... Rab8 {[%clk 0:00:21.5]} 29.
Rxb8 {[%clk 0:00:12.1]} 29... Rxb8 {[%clk 0:00:21.1]} 30. c7 {[%clk 0:00:13.7]}
30... Rc8 {[%clk 0:00:22.3]} 31. Nd8 {[%clk 0:00:10.8]} 31... Bd6 {[%clk
0:00:19.3]} 32. Ne6 {[%clk 0:00:11.9]} 32... Kf7 {[%clk 0:00:19.6]} 33. Kxd5
{[%clk 0:00:13]} 33... Bxh2 {[%clk 0:00:08.4]} 34. g3 {[%clk 0:00:13.7]} 34...
h5 {[%clk 0:00:03.8]} 35. Rh1 {[%clk 0:00:13.9]} 35... Ke7 {[%clk 0:00:05]} 36.
Rxh2 {[%clk 0:00:14.7]} 36... Kd7 {[%clk 0:00:05.5]} 37. Rh4 {[%clk 0:00:15.1]}
37... Re8 {[%clk 0:00:06.4]} 38. Re4 {[%clk 0:00:15.4]} 38... Kc8 {[%clk
0:00:05.8]} 39. Kd6 {[%clk 0:00:15.7]} 39... Rh8 {[%clk 0:00:05.8]} 40. Ra4
{[%clk 0:00:16.4]} 40... Kb7 {[%clk 0:00:06.2]} 41. Rb4+ {[%clk 0:00:17.5]}
41... Ka7 {[%clk 0:00:06.5]} 42. Ra4+ {[%clk 0:00:18.5]} 42... Kb7 {[%clk
0:00:07.6]} 43. Rxa3 {[%clk 0:00:20.4]} 43... g5 {[%clk 0:00:07.7]} 44. Rb3+
{[%clk 0:00:21.3]} 44... Ka7 {[%clk 0:00:08.1]} 45. Nxg5 {[%clk 0:00:22.6]}
45... h4 {[%clk 0:00:08.5]} 46. gxh4 {[%clk 0:00:23]} 46... Rh6+ {[%clk
0:00:07.7]} 47. Ne6 {[%clk 0:00:23.4]} 47... Rg6 {[%clk 0:00:07.6]} 48. h5
{[%clk 0:00:20.3]} 48... Rg1 {[%clk 0:00:06.8]} 49. Rc3 {[%clk 0:00:20.4]} 49...
Rd1+ {[%clk 0:00:05.7]} 50. Ke7 {[%clk 0:00:21.2]} 50... Kb6 {[%clk 0:00:05.8]}
51. c8=Q {[%clk 0:00:21.4]} 51... Rd7+ {[%clk 0:00:05.8]} 52. Qxd7 {[%clk
0:00:21.8]} 52... Ka6 {[%clk 0:00:06.4]} 53. Ra3+ {[%clk 0:00:22.3]} 53... Kb6
{[%clk 0:00:06.3]} 54. Rb3+ {[%clk 0:00:24.2]} 54... Ka5 {[%clk 0:00:07.3]} 55.
Qd5+ {[%clk 0:00:24.8]} 55... Ka6 {[%clk 0:00:07.8]} 56. Qa8# {[%clk 0:00:25.2]}
1-0

[Event "*** Titled Tuesday Blitz"]
[Site "Chess.com"]
[Date "2019.07.02"]
[Round "9"]
[White "Blitzstream"]
[Black "dmosesov"]
[Result "0-1"]
[WhiteElo "2761"]
[BlackElo "2530"]
[TimeControl "180+2"]
[EndTime "15:03:03 PDT"]
[Termination "dmosesov won by resignation"]

1. d4 {[%clk 0:03:01.9]} 1... Nf6 {[%clk 0:03:00.8]} 2. Bg5 {[%clk 0:03:02.5]}
2... Ne4 {[%clk 0:03:01.6]} 3. Bh4 {[%clk 0:03:03.5]} 3... d5 {[%clk 0:02:46.9]}
4. f3 {[%clk 0:03:05.4]} 4... Nd6 {[%clk 0:02:47]} 5. Nc3 {[%clk 0:03:06]} 5...
Nc4 {[%clk 0:02:23.1]} 6. e4 {[%clk 0:02:57]} 6... Nxb2 {[%clk 0:02:22.7]} 7.
Qc1 {[%clk 0:02:56.3]} 7... Nc4 {[%clk 0:02:23]} 8. Nxd5 {[%clk 0:02:55.8]} 8...
Nb6 {[%clk 0:02:18.8]} 9. Nxb6 {[%clk 0:02:22.8]} 9... axb6 {[%clk 0:02:20.7]}
10. c3 {[%clk 0:02:18.4]} 10... Nd7 {[%clk 0:01:57.6]} 11. Bc4 {[%clk
0:02:16.3]} 11... Nf6 {[%clk 0:01:54.6]} 12. Ne2 {[%clk 0:02:12.3]} 12... g6
{[%clk 0:01:50]} 13. Nf4 {[%clk 0:01:53.9]} 13... c6 {[%clk 0:01:30.3]} 14. e5
{[%clk 0:01:28.5]} 14... Nd5 {[%clk 0:01:29.8]} 15. Bxd5 {[%clk 0:01:28.9]}
15... cxd5 {[%clk 0:01:31.7]} 16. Qb2 {[%clk 0:01:30.3]} 16... Bh6 {[%clk
0:01:20.8]} 17. Nd3 {[%clk 0:01:03.3]} 17... O-O {[%clk 0:01:21.6]} 18. O-O
{[%clk 0:01:03.6]} 18... Bf5 {[%clk 0:01:21.1]} 19. Rad1 {[%clk 0:00:56.9]}
19... Rc8 {[%clk 0:01:21.7]} 20. Nb4 {[%clk 0:00:54]} 20... Be6 {[%clk
0:01:11.9]} 21. f4 {[%clk 0:00:41.4]} 21... Qc7 {[%clk 0:01:12.7]} 22. Be1
{[%clk 0:00:40.7]} 22... Qc4 {[%clk 0:01:08.1]} 23. Bd2 {[%clk 0:00:40.8]} 23...
Bf5 {[%clk 0:00:46]} 24. Rf2 {[%clk 0:00:40.9]} 24... Be4 {[%clk 0:00:42.6]} 25.
Qb3 {[%clk 0:00:35.1]} 25... Qxb3 {[%clk 0:00:39.4]} 26. axb3 {[%clk 0:00:36]}
26... Ra8 {[%clk 0:00:41.3]} 27. c4 {[%clk 0:00:31.2]} 27... dxc4 {[%clk
0:00:38.6]} 28. bxc4 {[%clk 0:00:32]} 28... Rfc8 {[%clk 0:00:40.3]} 29. Rc1
{[%clk 0:00:32.1]} 29... Ra3 {[%clk 0:00:30.6]} 30. Re2 {[%clk 0:00:26.8]} 30...
Bd3 {[%clk 0:00:27.9]} 31. Re3 {[%clk 0:00:24.6]} 31... Bxf4 {[%clk 0:00:28.4]}
32. Rxd3 {[%clk 0:00:04.3]} 32... Rxd3 {[%clk 0:00:29.4]} 33. Bxf4 {[%clk
0:00:05.7]} 33... Rxd4 {[%clk 0:00:28.4]} 34. Nd5 {[%clk 0:00:07.2]} 34... Rcxc4
{[%clk 0:00:21.1]} 35. Rxc4 {[%clk 0:00:07.4]} 35... Rxc4 {[%clk 0:00:23]} 36.
Nxe7+ {[%clk 0:00:08.4]} 36... Kf8 {[%clk 0:00:24.4]} 37. Nd5 {[%clk 0:00:09.8]}
37... b5 {[%clk 0:00:21.6]} 38. Kf2 {[%clk 0:00:08.8]} 38... h5 {[%clk
0:00:20.7]} 39. Bd2 {[%clk 0:00:07.9]} 39... Rd4 {[%clk 0:00:20.5]} 40. Bb4+
{[%clk 0:00:06.5]} 40... Ke8 {[%clk 0:00:16.7]} 41. Nf6+ {[%clk 0:00:07.3]}
41... Kd8 {[%clk 0:00:17.8]} 42. Ba5+ {[%clk 0:00:06.8]} 42... Kc8 {[%clk
0:00:18.2]} 43. Ke3 {[%clk 0:00:08]} 43... Ra4 {[%clk 0:00:19]} 44. Bc3 {[%clk
0:00:08.5]} 44... b4 {[%clk 0:00:19.2]} 45. Bd4 {[%clk 0:00:10.1]} 45... b3
{[%clk 0:00:20.5]} 46. Nd5 {[%clk 0:00:11.3]} 46... Ra2 {[%clk 0:00:18.4]} 47.
Nb6+ {[%clk 0:00:12.6]} 47... Kb8 {[%clk 0:00:18.3]} 48. Nc4 {[%clk 0:00:08]}
48... Rxg2 {[%clk 0:00:18.7]} 49. h4 {[%clk 0:00:09.5]} 49... Rg3+ {[%clk
0:00:15.9]} 50. Ke4 {[%clk 0:00:10.6]} 50... Rg4+ {[%clk 0:00:17.2]} 51. Kd5
{[%clk 0:00:12]} 51... Rxh4 {[%clk 0:00:18.1]} 52. Bb2 {[%clk 0:00:13.2]} 52...
b5 {[%clk 0:00:17.4]} 53. Nd6 {[%clk 0:00:13.7]} 53... Rh2 {[%clk 0:00:18.3]}
54. Bc1 {[%clk 0:00:11.5]} 54... b2 {[%clk 0:00:18.5]} 55. Bxb2 {[%clk
0:00:13.4]} 55... Rxb2 {[%clk 0:00:20.1]} 56. Nxf7 {[%clk 0:00:15.1]} 56... Rd2+
{[%clk 0:00:20.6]} 57. Kc6 {[%clk 0:00:14.6]} 57... h4 {[%clk 0:00:21.6]} 58.
Ng5 {[%clk 0:00:15.5]} 58... Re2 {[%clk 0:00:23]} 59. Kd6 {[%clk 0:00:15.7]}
59... b4 {[%clk 0:00:23.2]} 60. e6 {[%clk 0:00:17.3]} 60... b3 {[%clk
0:00:24.1]} 61. e7 {[%clk 0:00:19]} 61... Rxe7 {[%clk 0:00:25.3]} 62. Kxe7
{[%clk 0:00:19.8]} 62... b2 {[%clk 0:00:27.2]} 0-1

[Event "*** Titled Tuesday Blitz"]
[Site "Chess.com"]
[Date "2019.07.02"]
[Round "9"]
[White "dolynachess"]
[Black "Gubajdullin"]
[Result "0-1"]
[WhiteElo "2464"]
[BlackElo "2591"]
[TimeControl "180+2"]
[EndTime "15:03:07 PDT"]
[Termination "Gubajdullin won by resignation"]

1. d4 {[%clk 0:03:01.9]} 1... d5 {[%clk 0:02:58.5]} 2. c4 {[%clk 0:03:02]} 2...
c6 {[%clk 0:02:59.4]} 3. Nc3 {[%clk 0:03:00.4]} 3... Nf6 {[%clk 0:03:00.3]} 4.
cxd5 {[%clk 0:03:00.9]} 4... cxd5 {[%clk 0:03:00.4]} 5. Bf4 {[%clk 0:03:02.4]}
5... e6 {[%clk 0:02:53.4]} 6. e3 {[%clk 0:03:02.8]} 6... Be7 {[%clk 0:02:53.5]}
7. Bd3 {[%clk 0:02:58.6]} 7... O-O {[%clk 0:02:54]} 8. Nge2 {[%clk 0:02:59.4]}
8... Nc6 {[%clk 0:02:54.5]} 9. O-O {[%clk 0:02:59.5]} 9... Bd7 {[%clk
0:02:49.3]} 10. a3 {[%clk 0:02:58.6]} 10... Na5 {[%clk 0:02:41.9]} 11. Rc1
{[%clk 0:02:54.7]} 11... Nc4 {[%clk 0:02:39.6]} 12. Bxc4 {[%clk 0:02:32.5]}
12... dxc4 {[%clk 0:02:40.2]} 13. e4 {[%clk 0:02:25.8]} 13... Qb6 {[%clk
0:02:26.8]} 14. Qd2 {[%clk 0:02:18.3]} 14... Rfd8 {[%clk 0:02:25.7]} 15. Rfd1
{[%clk 0:02:17.7]} 15... Bc6 {[%clk 0:02:25]} 16. f3 {[%clk 0:02:15.5]} 16...
Rd7 {[%clk 0:02:05.8]} 17. Be3 {[%clk 0:02:15.3]} 17... Qa6 {[%clk 0:02:06.7]}
18. Na2 {[%clk 0:02:08.9]} 18... Ba4 {[%clk 0:02:05.4]} 19. Re1 {[%clk
0:02:05.7]} 19... Bb3 {[%clk 0:02:05.7]} 20. Nac3 {[%clk 0:01:57.6]} 20... b5
{[%clk 0:02:04.5]} 21. Bf2 {[%clk 0:01:48.2]} 21... Qb7 {[%clk 0:02:04.2]} 22.
Qe3 {[%clk 0:01:35.2]} 22... a5 {[%clk 0:02:03.7]} 23. Nb1 {[%clk 0:01:25.8]}
23... b4 {[%clk 0:02:03.7]} 24. axb4 {[%clk 0:01:24.7]} 24... Bxb4 {[%clk
0:01:56.3]} 25. Nd2 {[%clk 0:01:25]} 25... a4 {[%clk 0:01:48.9]} 26. Nxb3 {[%clk
0:01:10.8]} 26... cxb3 {[%clk 0:01:43.2]} 27. Red1 {[%clk 0:01:11.1]} 27... Rc8
{[%clk 0:01:23.2]} 28. Qd3 {[%clk 0:00:51.9]} 28... Rdc7 {[%clk 0:01:20]} 29.
Rxc7 {[%clk 0:00:41.2]} 29... Rxc7 {[%clk 0:01:18.3]} 30. Rc1 {[%clk 0:00:38.2]}
30... Rxc1+ {[%clk 0:01:12.2]} 31. Nxc1 {[%clk 0:00:40.1]} 31... Qc6 {[%clk
0:01:11.7]} 32. Be3 {[%clk 0:00:40.2]} 32... Nd7 {[%clk 0:01:05.2]} 33. d5
{[%clk 0:00:32.7]} 33... exd5 {[%clk 0:00:54.2]} 34. exd5 {[%clk 0:00:34.6]}
34... Qb7 {[%clk 0:00:45]} 35. Qc4 {[%clk 0:00:28.5]} 35... h6 {[%clk 0:00:33]}
36. Nd3 {[%clk 0:00:23.5]} 36... Bd6 {[%clk 0:00:27.8]} 37. Kf2 {[%clk
0:00:15.4]} 37... Ne5 {[%clk 0:00:28]} 38. Nxe5 {[%clk 0:00:12.8]} 38... Bxe5
{[%clk 0:00:28.7]} 39. Qxa4 {[%clk 0:00:13.3]} 39... Qxd5 {[%clk 0:00:23.8]} 40.
Qa3 {[%clk 0:00:08.2]} 40... Bd6 {[%clk 0:00:15.7]} 41. Qa7 {[%clk 0:00:06.4]}
41... h5 {[%clk 0:00:14.8]} 42. h4 {[%clk 0:00:06.6]} 42... Qd3 {[%clk
0:00:11.7]} 43. Qd4 {[%clk 0:00:06.4]} 43... Qc2+ {[%clk 0:00:09.1]} 44. Qd2
{[%clk 0:00:07.2]} 44... Qxd2+ {[%clk 0:00:07.1]} 45. Bxd2 {[%clk 0:00:09.1]}
45... Be5 {[%clk 0:00:07.7]} 46. Bc1 {[%clk 0:00:10.2]} 46... Bf6 {[%clk
0:00:08.7]} 47. g3 {[%clk 0:00:10.9]} 47... Be5 {[%clk 0:00:08.5]} 48. f4 {[%clk
0:00:12.2]} 48... Bd4+ {[%clk 0:00:09.3]} 49. Ke2 {[%clk 0:00:13.6]} 49... f5
{[%clk 0:00:09.5]} 50. Kd3 {[%clk 0:00:13.8]} 50... Bf2 {[%clk 0:00:10.4]} 51.
Kc4 {[%clk 0:00:14.6]} 51... Bxg3 {[%clk 0:00:11.4]} 52. Kxb3 {[%clk 0:00:16.2]}
52... Bxh4 {[%clk 0:00:12.3]} 53. Kc4 {[%clk 0:00:17.6]} 53... Bg3 {[%clk
0:00:12]} 54. Be3 {[%clk 0:00:17]} 54... h4 {[%clk 0:00:12.8]} 55. b4 {[%clk
0:00:17.8]} 55... h3 {[%clk 0:00:13.9]} 56. Bg1 {[%clk 0:00:18.9]} 56... h2
{[%clk 0:00:15.1]} 57. Bxh2 {[%clk 0:00:20.2]} 57... Bxh2 {[%clk 0:00:16.1]} 58.
Kd5 {[%clk 0:00:22.1]} 58... Bxf4 {[%clk 0:00:16.8]} 0-1

[Event "*** Titled Tuesday Blitz"]
[Site "Chess.com"]
[Date "2019.07.02"]
[Round "9"]
[White "SoltaniciR"]
[Black "BakaPG"]
[Result "1/2-1/2"]
[WhiteElo "2576"]
[BlackElo "2704"]
[TimeControl "180+2"]
[EndTime "15:03:21 PDT"]
[Termination "Game drawn - insufficient material"]

1. e4 {[%clk 0:03:01.9]} 1... e6 {[%clk 0:03:00.4]} 2. d4 {[%clk 0:02:58.4]}
2... d5 {[%clk 0:03:01.3]} 3. Bd3 {[%clk 0:02:59.4]} 3... Nf6 {[%clk 0:03:00.7]}
4. e5 {[%clk 0:03:00.1]} 4... Nfd7 {[%clk 0:03:00.7]} 5. Nf3 {[%clk 0:03:01.3]}
5... c5 {[%clk 0:03:01.8]} 6. c3 {[%clk 0:03:02.8]} 6... Nc6 {[%clk 0:03:03]} 7.
O-O {[%clk 0:03:03.2]} 7... Be7 {[%clk 0:03:04.1]} 8. a3 {[%clk 0:03:02.8]} 8...
a6 {[%clk 0:02:58.6]} 9. b4 {[%clk 0:02:59.5]} 9... cxd4 {[%clk 0:02:58.7]} 10.
cxd4 {[%clk 0:03:00.7]} 10... b5 {[%clk 0:02:59]} 11. Nc3 {[%clk 0:02:55.7]}
11... Nb6 {[%clk 0:02:59.3]} 12. Ne2 {[%clk 0:02:44.7]} 12... g5 {[%clk
0:02:54.9]} 13. Be3 {[%clk 0:02:17.6]} 13... Nc4 {[%clk 0:02:51.1]} 14. Bxc4
{[%clk 0:02:15.4]} 14... dxc4 {[%clk 0:02:51.9]} 15. Nc3 {[%clk 0:02:16.1]}
15... g4 {[%clk 0:02:45.3]} 16. Ne1 {[%clk 0:02:00.9]} 16... Rg8 {[%clk
0:02:45.4]} 17. f4 {[%clk 0:01:50.9]} 17... Bb7 {[%clk 0:02:43.2]} 18. Nc2
{[%clk 0:01:47.6]} 18... f5 {[%clk 0:02:26.9]} 19. exf6 {[%clk 0:01:33.8]} 19...
Bxf6 {[%clk 0:02:27.1]} 20. f5 {[%clk 0:01:34.7]} 20... e5 {[%clk 0:02:25.1]}
21. d5 {[%clk 0:01:17.9]} 21... Ne7 {[%clk 0:02:24.9]} 22. d6 {[%clk 0:01:15.2]}
22... Nc6 {[%clk 0:02:20.1]} 23. Bc5 {[%clk 0:01:07.4]} 23... Kf7 {[%clk
0:02:00.6]} 24. Nd5 {[%clk 0:00:58.2]} 24... Kg7 {[%clk 0:01:42.1]} 25. Nc7
{[%clk 0:00:57.7]} 25... Kh8 {[%clk 0:01:37.2]} 26. Nxa8 {[%clk 0:00:57.8]}
26... Bxa8 {[%clk 0:01:36.2]} 27. Qd2 {[%clk 0:00:41]} 27... e4 {[%clk
0:01:31.6]} 28. Rae1 {[%clk 0:00:35.8]} 28... Ne5 {[%clk 0:01:32.1]} 29. Ne3
{[%clk 0:00:18.6]} 29... Nd3 {[%clk 0:01:29.6]} 30. Qe2 {[%clk 0:00:16.3]} 30...
h5 {[%clk 0:01:11.6]} 31. Rd1 {[%clk 0:00:15.4]} 31... Kh7 {[%clk 0:01:05.7]}
32. Nc2 {[%clk 0:00:12.1]} 32... Be5 {[%clk 0:00:58.9]} 33. Nd4 {[%clk
0:00:11.3]} 33... Bxd6 {[%clk 0:00:47.5]} 34. Bxd6 {[%clk 0:00:11.2]} 34... Qxd6
{[%clk 0:00:47.8]} 35. Ne6 {[%clk 0:00:12.1]} 35... Qe5 {[%clk 0:00:43.3]} 36.
Qe3 {[%clk 0:00:13]} 36... Bd5 {[%clk 0:00:27.1]} 37. Nf4 {[%clk 0:00:13.8]}
37... Bf7 {[%clk 0:00:21.7]} 38. Nxd3 {[%clk 0:00:13.4]} 38... cxd3 {[%clk
0:00:22.7]} 39. Rxd3 {[%clk 0:00:14.6]} 39... g3 {[%clk 0:00:20.8]} 40. hxg3
{[%clk 0:00:13.7]} 40... Rg7 {[%clk 0:00:19]} 41. Rd4 {[%clk 0:00:14.7]} 41...
Rxg3 {[%clk 0:00:19.4]} 42. Qxe4 {[%clk 0:00:15.7]} 42... Qxe4 {[%clk
0:00:18.9]} 43. Rxe4 {[%clk 0:00:16.7]} 43... Bd5 {[%clk 0:00:19.9]} 44. Re2
{[%clk 0:00:17.6]} 44... Kg8 {[%clk 0:00:19.5]} 45. f6 {[%clk 0:00:18.7]} 45...
Kf8 {[%clk 0:00:19.2]} 46. Rd2 {[%clk 0:00:16.7]} 46... Bc4 {[%clk 0:00:18.1]}
47. Rd8+ {[%clk 0:00:17.3]} 47... Kf7 {[%clk 0:00:18.8]} 48. Rd7+ {[%clk
0:00:18.6]} 48... Kf8 {[%clk 0:00:19.9]} 49. Rf5 {[%clk 0:00:13.4]} 49... Be6
{[%clk 0:00:20.3]} 50. Rfd5 {[%clk 0:00:11.7]} 50... Bxd5 {[%clk 0:00:19.5]} 51.
Rxd5 {[%clk 0:00:12.3]} 51... h4 {[%clk 0:00:19.9]} 52. Kh2 {[%clk 0:00:11.8]}
52... Rxa3 {[%clk 0:00:20.5]} 53. Rd7 {[%clk 0:00:13]} 53... Ra4 {[%clk
0:00:20.2]} 54. Ra7 {[%clk 0:00:13.9]} 54... Rxb4 {[%clk 0:00:21.1]} 55. Rxa6
{[%clk 0:00:15.1]} 55... Kf7 {[%clk 0:00:22.4]} 56. Kh3 {[%clk 0:00:15]} 56...
Rf4 {[%clk 0:00:22.6]} 57. Rb6 {[%clk 0:00:15.9]} 57... b4 {[%clk 0:00:23.7]}
58. g3 {[%clk 0:00:16.4]} 58... hxg3 {[%clk 0:00:23.3]} 59. Kxg3 {[%clk
0:00:17.5]} 59... Rxf6 {[%clk 0:00:24.7]} 60. Rxb4 {[%clk 0:00:17.4]} 60... Rg6+
{[%clk 0:00:25.9]} 61. Rg4 {[%clk 0:00:18.3]} 61... Rxg4+ {[%clk 0:00:25.9]} 62.
Kxg4 {[%clk 0:00:19.1]} 1/2-1/2

[Event "*** Titled Tuesday Blitz"]
[Site "Chess.com"]
[Date "2019.07.02"]
[Round "9"]
[White "MikeSailer"]
[Black "Andrii_Prydun"]
[Result "0-1"]
[WhiteElo "2067"]
[BlackElo "2302"]
[TimeControl "180+2"]
[EndTime "15:03:35 PDT"]
[Termination "Andrii_Prydun won by resignation"]

1. b4 {[%clk 0:03:01.9]} 1... e6 {[%clk 0:02:58.4]} 2. Bb2 {[%clk 0:03:02.7]}
2... Nf6 {[%clk 0:02:57.5]} 3. b5 {[%clk 0:03:04.5]} 3... d5 {[%clk 0:02:57.1]}
4. e3 {[%clk 0:03:05.9]} 4... Be7 {[%clk 0:02:57]} 5. Nf3 {[%clk 0:03:07.3]}
5... O-O {[%clk 0:02:57.9]} 6. Be2 {[%clk 0:03:09]} 6... a6 {[%clk 0:02:58.5]}
7. a4 {[%clk 0:03:10.3]} 7... axb5 {[%clk 0:02:59]} 8. axb5 {[%clk 0:03:11.8]}
8... Rxa1 {[%clk 0:02:59.8]} 9. Bxa1 {[%clk 0:03:13.5]} 9... c6 {[%clk
0:03:00.4]} 10. O-O {[%clk 0:03:14.5]} 10... Bd7 {[%clk 0:03:01.1]} 11. c4
{[%clk 0:03:14.5]} 11... dxc4 {[%clk 0:03:00.8]} 12. bxc6 {[%clk 0:03:12.7]}
12... Bxc6 {[%clk 0:02:59.7]} 13. Bxc4 {[%clk 0:03:13.8]} 13... Bd5 {[%clk
0:02:55.7]} 14. Bxd5 {[%clk 0:03:12.5]} 14... Nxd5 {[%clk 0:02:55.2]} 15. Nc3
{[%clk 0:03:08.4]} 15... Nc6 {[%clk 0:02:55.7]} 16. Nxd5 {[%clk 0:03:09.1]}
16... Qxd5 {[%clk 0:02:56]} 17. Qb1 {[%clk 0:03:04.2]} 17... b5 {[%clk
0:02:55.2]} 18. Rc1 {[%clk 0:03:02.9]} 18... Rb8 {[%clk 0:02:55]} 19. Qc2 {[%clk
0:02:42.6]} 19... Rb6 {[%clk 0:02:08.8]} 20. Nd4 {[%clk 0:02:19]} 20... Nxd4
{[%clk 0:01:02.7]} 21. Qc8+ {[%clk 0:02:18.5]} 21... Qd8 {[%clk 0:01:03]} 22.
Bxd4 {[%clk 0:02:12.3]} 22... Rb8 {[%clk 0:01:01.5]} 23. Qxd8+ {[%clk
0:01:41.2]} 23... Bxd8 {[%clk 0:01:01.3]} 24. Kf1 {[%clk 0:01:33.1]} 24... f6
{[%clk 0:00:52.5]} 25. f4 {[%clk 0:01:27.7]} 25... Kf7 {[%clk 0:00:51.9]} 26.
Ke2 {[%clk 0:01:29.2]} 26... Ke7 {[%clk 0:00:40.4]} 27. Bc5+ {[%clk 0:01:13.6]}
27... Kd7 {[%clk 0:00:39.9]} 28. Kd3 {[%clk 0:00:56.1]} 28... Ra8 {[%clk
0:00:35.8]} 29. Bf8 {[%clk 0:00:41.2]} 29... g6 {[%clk 0:00:36]} 30. Rc5 {[%clk
0:00:16.4]} 30... Ke8 {[%clk 0:00:26.4]} 31. Bd6 {[%clk 0:00:11.1]} 31... Kd7
{[%clk 0:00:26.5]} 32. Bf8 {[%clk 0:00:10.3]} 32... Ke8 {[%clk 0:00:10.1]} 33.
Bd6 {[%clk 0:00:08.8]} 33... Ra6 {[%clk 0:00:07.8]} 34. Bc7 {[%clk 0:00:05.6]}
34... Ra3+ {[%clk 0:00:07.5]} 35. Kc2 {[%clk 0:00:05.6]} 35... Ra2+ {[%clk
0:00:07.9]} 36. Kc3 {[%clk 0:00:07]} 36... b4+ {[%clk 0:00:08.2]} 37. Kb3 {[%clk
0:00:05.4]} 37... Rxd2 {[%clk 0:00:08.7]} 38. Bxd8 {[%clk 0:00:06.2]} 38... Kxd8
{[%clk 0:00:09.2]} 39. Kxb4 {[%clk 0:00:06.2]} 39... Rxg2 {[%clk 0:00:09.5]} 40.
Rc6 {[%clk 0:00:05.9]} 40... Kd7 {[%clk 0:00:09.5]} 41. Ra6 {[%clk 0:00:05.2]}
41... Rxh2 {[%clk 0:00:10.7]} 42. Ra7+ {[%clk 0:00:06.4]} 42... Kd6 {[%clk
0:00:11.5]} 43. Ra6+ {[%clk 0:00:05.7]} 43... Kd5 {[%clk 0:00:12.7]} 44. Ra5+
{[%clk 0:00:03.6]} 44... Ke4 {[%clk 0:00:13.6]} 45. Ra6 {[%clk 0:00:03.3]} 45...
Kxe3 {[%clk 0:00:14]} 46. Rxe6+ {[%clk 0:00:04.7]} 46... Kxf4 {[%clk 0:00:15.3]}
47. Rxf6+ {[%clk 0:00:06.6]} 47... Kg5 {[%clk 0:00:16.6]} 48. Rf8 {[%clk
0:00:07.1]} 48... h5 {[%clk 0:00:17.8]} 49. Kc3 {[%clk 0:00:08.8]} 49... Rh3+
{[%clk 0:00:17.1]} 50. Kd2 {[%clk 0:00:09.9]} 50... Rg3 {[%clk 0:00:17.2]} 51.
Ke2 {[%clk 0:00:11.1]} 51... h4 {[%clk 0:00:18.6]} 52. Kf2 {[%clk 0:00:12.5]}
52... Kg4 {[%clk 0:00:19.2]} 53. Rg8 {[%clk 0:00:13.2]} 53... g5 {[%clk
0:00:20]} 54. Rg7 {[%clk 0:00:14.2]} 54... Ra3 {[%clk 0:00:20.7]} 55. Kg2 {[%clk
0:00:14.4]} 55... Ra2+ {[%clk 0:00:21.7]} 56. Kg1 {[%clk 0:00:15.6]} 56... h3
{[%clk 0:00:21.5]} 57. Kh1 {[%clk 0:00:15.4]} 57... Ra5 {[%clk 0:00:20.3]} 58.
Kh2 {[%clk 0:00:15.9]} 58... Ra2+ {[%clk 0:00:20.5]} 59. Kh1 {[%clk 0:00:17.1]}
59... Kf4 {[%clk 0:00:20.6]} 60. Kg1 {[%clk 0:00:14]} 60... g4 {[%clk
0:00:20.5]} 61. Kh1 {[%clk 0:00:13.3]} 61... Kg3 {[%clk 0:00:14.6]} 62. Ra7
{[%clk 0:00:09.4]} 62... Rxa7 {[%clk 0:00:13.9]} 0-1